fUST/lending_fUST_20240502
["ID","MTS","AMOUNT","RATE_DAILY","PERIOD"]
[325220295,1714594246237,-500.0,0.00053424,120]
[325220298,1714594246248,-335.33380821,0.00053424,120]
[325220301,1714594246257,-500.0,0.00053424,120]
[325220304,1714594246266,-500.0,0.00053424,120]
[325220307,1714594246275,-500.0,0.00053424,120]
[325220309,1714594246284,-938.56,0.00053424,120]
[325220311,1714594246294,-500.0,0.00053424,120]
[325220314,1714594246303,-500.0,0.00053424,120]
[325220316,1714594246312,-500.0,0.00053424,120]
[325220319,1714594246325,-500.0,0.00053424,120]
[325220322,1714594246336,-640.98,0.00053424,120]
[325220326,1714594246345,-474.04326759,0.00053424,120]
[325220328,1714594246355,-500.0,0.00053424,120]
[325220330,1714594246366,-300.0,0.00053424,2]
[325220333,1714594246375,-500.0,0.00053424,120]
[325220336,1714594246384,-1319.65,0.00053424,120]
[325220338,1714594246393,-923.21,0.00053424,120]
[325220342,1714594246405,-500.0,0.00053424,120]
[325220344,1714594246415,-500.0,0.00053424,120]
[325220347,1714594246425,-500.0,0.00053424,120]
[325220350,1714594246434,-500.0,0.00053424,120]
[325220354,1714594246444,-500.0,0.00053424,120]
[325220356,1714594246453,-500.0,0.00053424,120]
[325220359,1714594246463,-500.0,0.00053424,120]
[325220362,1714594246472,-500.0,0.00053424,120]
[325220365,1714594246481,-500.0,0.00053424,120]
[325220367,1714594246490,-907.84,0.00053424,120]
[325220369,1714594246502,-862.16,0.00053424,120]
[325220370,1714594246510,-500.0,0.00053424,120]
[325220373,1714594246520,-2859.42,0.00053424,120]
[325220376,1714594246529,-500.0,0.00053424,120]
[325220378,1714594246538,-500.0,0.00053424,120]
[325220380,1714594246548,-500.0,0.00053424,120]
[325220382,1714594246558,-500.0,0.00053424,120]
[325220384,1714594246567,-500.0,0.00053424,120]
[325220386,1714594246576,-2858.23,0.00053424,120]
[325220388,1714594246586,-500.0,0.00053424,120]
[325220390,1714594246595,-500.0,0.00053424,120]
[325220391,1714594246604,-301.78688122,0.00053424,7]
[325220392,1714594246613,-500.0,0.00053424,120]
[325220393,1714594246622,-500.0,0.00053424,3]
[325220394,1714594246631,-500.0,0.00053424,120]
[325220395,1714594246640,-701.82,0.00053424,120]
[325220396,1714594246649,-500.0,0.00053424,120]
[325220397,1714594246658,-812.11,0.00053424,120]
[325220398,1714594246668,-680.91,0.00053424,120]
[325220399,1714594246677,-1022.99,0.00053424,120]
[325220400,1714594246686,-500.0,0.00053424,120]
[325220401,1714594246695,-500.0,0.00053424,120]
[325220402,1714594246705,-500.0,0.00053424,120]
[325220403,1714594246714,-500.0,0.00053424,120]
[325220404,1714594246723,-500.0,0.00053424,120]
[325220405,1714594246732,-656.49,0.00053424,120]
[325220407,1714594246741,-500.0,0.00053424,120]
[325220409,1714594246752,-873.29,0.00053424,120]
[325220411,1714594246761,-646.97,0.00053424,120]
[325220413,1714594246771,-500.0,0.00053424,120]
[325220415,1714594246780,-336.85300015,0.00053424,120]
[325220417,1714594246789,-500.0,0.00053424,120]
[325220419,1714594246798,-500.0,0.00053424,120]
[325220421,1714594246807,-501.72246597,0.00053424,120]
[325220423,1714594246816,-590.55,0.00053424,120]
[325220425,1714594246826,-500.0,0.00053424,120]
[325220427,1714594246835,-610.74812381,0.00053424,120]
[325220429,1714594246844,-500.0,0.00053424,120]
[325220431,1714594246853,-500.0,0.00053424,120]
[325220433,1714594246862,-500.0,0.00053424,120]
[325220435,1714594246872,-546.24,0.00053424,120]
[325220437,1714594246882,-500.0,0.00053424,120]
[325220439,1714594246891,-500.0,0.00053424,120]
[325220441,1714594246900,-508.19253996,0.00053424,120]
[325220443,1714594246909,-500.0,0.00053424,120]
[325220445,1714594246918,-500.0,0.00053424,120]
[325220447,1714594246927,-500.0,0.00053424,120]
[325220449,1714594246936,-500.0,0.00053424,120]
[325220451,1714594246945,-500.0,0.00053424,120]
[325220453,1714594246954,-500.0,0.00053424,120]
[325220455,1714594246964,-500.0,0.00053424,120]
[325220457,1714594246973,-500.0,0.00053424,120]
[325220459,1714594246983,-506.47,0.00053424,120]
[325220461,1714594246992,-500.0,0.00053424,120]
[325220463,1714594247003,-500.0,0.00053424,120]
[325220465,1714594247013,-500.0,0.00053424,120]
[325220467,1714594247023,-500.0,0.00053424,120]
[325220469,1714594247032,-781.22,0.00053424,2]
[325220471,1714594247041,-500.0,0.00053424,120]
[325220473,1714594247050,-525.76,0.00053424,120]
[325220475,1714594247060,-500.0,0.00053424,120]
[325220477,1714594247069,-664.25,0.00053424,120]
[325220479,1714594247079,-500.0,0.00053424,120]
[325220481,1714594247088,-500.0,0.00053424,120]
[325220483,1714594247098,-500.0,0.00053424,120]
[325220485,1714594247107,-500.0,0.00053424,120]
[325220487,1714594247116,-500.0,0.00053424,120]
[325220489,1714594247125,-500.0,0.00053424,120]
[325220491,1714594247135,-500.0,0.00053424,120]
[325220493,1714594247144,-600.0,0.00053424,120]
[325220495,1714594247154,-414.68551336,0.00053424,120]
[325220497,1714594247163,-500.0,0.00053424,120]
[325220499,1714594247173,-722.11,0.00053424,120]
[325220501,1714594247183,-500.0,0.00053424,120]
[325220503,1714594247192,-500.0,0.00053424,120]
[325220505,1714594247201,-500.0,0.00053424,120]
[325220507,1714594247210,-503.62873282,0.00053424,120]
[325220509,1714594247221,-661.06,0.00053424,120]
[325220511,1714594247230,-500.0,0.00053424,120]
[325220513,1714594247240,-500.47129775,0.00053424,120]
[325220515,1714594247251,-500.0,0.00053424,120]
[325220517,1714594247260,-500.0,0.00053424,120]
[325220519,1714594247270,-500.0,0.00053424,120]
[325220521,1714594247279,-946.02,0.00053424,120]
[325220523,1714594247289,-500.0,0.00053424,120]
[325220525,1714594247298,-722.96,0.00053424,120]
[325220527,1714594247308,-500.0,0.00053424,120]
[325220529,1714594247318,-762.68,0.00053424,120]
[325220531,1714594247331,-500.0,0.00053424,120]
[325220533,1714594247340,-500.0,0.00053424,120]
[325220535,1714594247349,-500.0,0.00053424,120]
[325220537,1714594247360,-2083.51,0.00053424,120]
[325220539,1714594247369,-950.4,0.00053424,120]
[325220541,1714594247379,-548.28,0.00053424,120]
[325220543,1714594247389,-500.0,0.00053424,120]
[325220545,1714594247398,-500.0,0.00053424,120]
[325220547,1714594247409,-949.4,0.00053424,120]
[325220549,1714594247418,-500.0,0.00053424,120]
[325220551,1714594247427,-500.0,0.00053424,120]
[325220553,1714594247437,-500.0,0.00053424,120]
[325220555,1714594247446,-500.0,0.00053424,120]
[325220557,1714594247456,-151.0,0.00053424,120]
[325220559,1714594247465,-500.0,0.00053424,120]
[325220561,1714594247475,-681.06,0.00053424,7]
[325220563,1714594247485,-6822.69,0.00053424,120]
[325220565,1714594247495,-781.34,0.00053424,120]
[325220568,1714594247507,-500.0,0.00053424,120]
[325220570,1714594247516,-500.0,0.00053424,120]
[325220572,1714594247526,-500.0,0.00053424,120]
[325220574,1714594247536,-185.67983602,0.00053424,120]
[325220576,1714594247548,-500.0,0.00053424,120]
[325220578,1714594247558,-500.0,0.00053424,120]
[325220580,1714594247567,-500.0,0.00053424,7]
[325220582,1714594247576,-500.0,0.00053424,5]
[325220584,1714594247586,-500.0,0.00053424,120]
[325220586,1714594247595,-500.0,0.00053424,120]
[325220588,1714594247604,-1629.65,0.00053424,120]
[325220590,1714594247613,-508.57,0.00053424,120]
[325220592,1714594247623,-500.0,0.00053424,120]
[325220594,1714594247632,-500.0,0.00053424,120]
[325220596,1714594247642,-1231.53,0.00053424,120]
[325220598,1714594247651,-500.0,0.00053424,120]
[325220600,1714594247661,-500.0,0.00053424,120]
[325220602,1714594247670,-500.0,0.00053424,20]
[325220604,1714594247680,-1110.07,0.00053424,120]
[325220606,1714594247691,-500.0,0.00053424,120]
[325220608,1714594247700,-500.0,0.00053424,120]
[325220610,1714594247709,-389.2782796,0.00053424,120]
[325220612,1714594247718,-712.21,0.00053424,120]
[325220614,1714594247727,-500.0,0.00053424,120]
[325220616,1714594247736,-500.0,0.00053424,120]
[325220618,1714594247746,-500.0,0.00053424,120]
[325220620,1714594247757,-957.76,0.00053424,21]
[325220622,1714594247767,-609.09,0.00053424,120]
[325220624,1714594247776,-500.0,0.00053424,120]
[325220626,1714594247786,-507.68,0.00053424,120]
[325220628,1714594247795,-1130.22,0.00053424,120]
[325220631,1714594247805,-500.0,0.00053424,120]
[325220632,1714594247819,-915.21,0.00053424,120]
[325220634,1714594247829,-500.0,0.00053424,120]
[325220636,1714594247838,-500.0,0.00053424,120]
[325220638,1714594247847,-500.0,0.00053424,120]
[325220640,1714594247857,-500.0,0.00053424,120]
[325220642,1714594247867,-500.0,0.00053424,120]
[325220644,1714594247876,-531.91596761,0.00053424,120]
[325220647,1714594247886,-500.0,0.00053424,120]
[325220649,1714594247895,-500.0,0.00053424,120]
[325220651,1714594247904,-500.0,0.00053424,120]
[325220653,1714594247914,-512.59,0.00053424,120]
[325220655,1714594247923,-112.96438657,0.00053424,120]
[325220733,1714594248657,-388.3645873,0.00052876,120]
[325220761,1714594248913,-1243.88,0.00052866,3]
[325220763,1714594248922,-111.6354127,0.00052876,120]
[325220765,1714594248932,-387.03561343,0.00053424,120]
[325220767,1714594248941,-500.0,0.00053424,120]
[325220769,1714594248950,-500.0,0.00053424,120]
[325220771,1714594248959,-500.0,0.00053424,120]
[325220773,1714594248968,-500.0,0.00053424,120]
[325220775,1714594248977,-500.0,0.00053424,60]
[325220776,1714594248986,-3356.79,0.00053424,120]
[325220777,1714594248995,-500.0,0.00053424,120]
[325220778,1714594249008,-500.0,0.00053424,120]
[325220779,1714594249017,-500.0,0.00053424,120]
[325220780,1714594249027,-1865.9,0.00053424,2]
[325220781,1714594249036,-500.0,0.00053424,120]
[325220782,1714594249045,-523.47522486,0.00053424,120]
[325220784,1714594249054,-500.0,0.00053424,120]
[325220787,1714594249064,-212.15649685,0.00053424,120]
[325220789,1714594249074,-597.2283522,0.00053424,120]
[325220791,1714594249082,-1760.21,0.00053424,120]
[325220793,1714594249091,-500.0,0.00053424,120]
[325220795,1714594249100,-500.0,0.00053424,120]
[325220797,1714594249109,-1137.82,0.00053424,120]
[325220799,1714594249118,-545.93,0.00053424,120]
[325220801,1714594249127,-933.49,0.00053424,120]
[325220803,1714594249136,-500.0,0.00053424,120]
[325220805,1714594249145,-586.6582426,0.00053424,120]
[325220806,1714594249155,-500.0,0.00053424,120]
[325220809,1714594249165,-500.0,0.00053424,120]
[325220810,1714594249174,-500.0,0.00053424,120]
[325220813,1714594249184,-500.0,0.00053424,120]
[325220815,1714594249193,-991.04,0.00053424,120]
[325220817,1714594249202,-1056.8,0.00053424,120]
[325220818,1714594249211,-500.0,0.00053424,120]
[325220820,1714594249219,-500.0,0.00053424,120]
[325220823,1714594249228,-673.33,0.00053424,120]
[325220825,1714594249238,-500.0,0.00053424,120]
[325220827,1714594249246,-500.0,0.00053424,120]
[325220828,1714594249258,-500.0,0.00053424,120]
[325220830,1714594249267,-1451.22,0.00053424,30]
[325220832,1714594249276,-769.1,0.00053424,120]
[325220835,1714594249286,-500.0,0.00053424,120]
[325220837,1714594249295,-658.77,0.00053424,120]
[325220839,1714594249304,-500.0,0.00053424,120]
[325220840,1714594249312,-500.0,0.00053424,120]
[325220842,1714594249322,-13618.27,0.00053424,120]
[325220845,1714594249334,-500.0,0.00053424,120]
[325220846,1714594249343,-500.0,0.00053424,120]
[325220848,1714594249352,-500.0,0.00053424,120]
[325220851,1714594249362,-500.0,0.00053424,120]
[325220853,1714594249371,-1051.85,0.00053424,120]
[325220855,1714594249380,-500.0,0.00053424,120]
[325220857,1714594249389,-184.8153411,0.00053424,120]
[325220858,1714594249399,-4304.32,0.00053424,120]
[325220861,1714594249412,-500.0,0.00053424,120]
[325220863,1714594249422,-500.0,0.00053424,120]
[325220865,1714594249431,-500.0,0.00053424,120]
[325220867,1714594249440,-500.0,0.00053424,120]
[325220869,1714594249449,-780.54,0.00053424,120]
[325220871,1714594249458,-1115.79,0.00053424,120]
[325220873,1714594249467,-500.0,0.00053424,120]
[325220874,1714594249476,-500.0,0.00053424,120]
[325220876,1714594249485,-501.37907364,0.00053424,120]
[325220878,1714594249495,-500.0,0.00053424,120]
[325220881,1714594249507,-500.0,0.00053424,120]
[325220883,1714594249517,-2727.46,0.00053424,120]
[325220885,1714594249526,-500.0,0.00053424,120]
[325220887,1714594249535,-500.0,0.00053424,120]
[325220889,1714594249546,-500.0,0.00053424,120]
[325220891,1714594249555,-500.0,0.00053424,120]
[325220893,1714594249564,-2114.15,0.00053424,120]
[325220895,1714594249573,-518.29,0.00053424,120]
[325220897,1714594249582,-893.92,0.00053424,120]
[325220899,1714594249591,-500.0,0.00053424,120]
[325220901,1714594249600,-500.0,0.00053424,120]
[325220903,1714594249609,-500.0,0.00053424,120]
[325220905,1714594249619,-500.0,0.00053424,120]
[325220907,1714594249627,-500.0,0.00053424,120]
[325220909,1714594249636,-500.0,0.00053424,120]
[325220911,1714594249645,-500.0,0.00053424,120]
[325220913,1714594249654,-500.0,0.00053424,120]
[325220915,1714594249664,-500.0,0.00053424,120]
[325220917,1714594249673,-507.12984672,0.00053424,120]
[325220919,1714594249682,-961.18,0.00053424,120]
[325220921,1714594249690,-500.0,0.00053424,120]
[325220923,1714594249700,-500.0,0.00053424,30]
[325220925,1714594249709,-1886.53,0.00053424,120]
[325220927,1714594249717,-500.0,0.00053424,120]
[325220929,1714594249726,-500.0,0.00053424,120]
[325220931,1714594249736,-763.99,0.00053424,120]
[325220933,1714594249745,-543.43716989,0.00053424,120]
[325220934,1714594249756,-500.0,0.00053424,120]
[325220936,1714594249765,-500.0,0.00053424,120]
[325220938,1714594249774,-500.0,0.00053424,120]
[325220940,1714594249783,-500.0,0.00053424,120]
[325220942,1714594249792,-655.4,0.00053424,120]
[325220944,1714594249801,-658.36,0.00053424,120]
[325220946,1714594249809,-734.8,0.00053424,120]
[325220949,1714594249818,-500.0,0.00053424,120]
[325220951,1714594249827,-500.0,0.00053424,120]
[325220953,1714594249836,-926.68,0.00053424,120]
[325220955,1714594249845,-1832.24,0.00053424,120]
[325220957,1714594249855,-500.0,0.00053424,120]
[325220959,1714594249864,-500.0,0.00053424,120]
[325220961,1714594249874,-500.0,0.00053424,120]
[325220963,1714594249883,-500.0,0.00053424,120]
[325220965,1714594249892,-2353.7,0.00053424,120]
[325220967,1714594249902,-585.88,0.00053424,120]
[325220969,1714594249911,-5759.65,0.00053424,120]
[325220971,1714594249920,-603.13,0.00053424,120]
[325220973,1714594249929,-649.68,0.00053424,120]
[325220975,1714594249938,-500.0,0.00053424,120]
[325220977,1714594249947,-527.17,0.00053424,120]
[325220979,1714594249956,-500.0,0.00053424,120]
[325220981,1714594249965,-902.2,0.00053424,120]
[325220983,1714594249974,-500.0,0.00053424,120]
[325220984,1714594249983,-500.0,0.00053424,120]
[325220986,1714594249992,-9244.79,0.00053424,120]
[325220989,1714594250008,-500.0,0.00053424,120]
[325220990,1714594250019,-734.71,0.00053424,120]
[325220992,1714594250027,-664.14,0.00053424,120]
[325220995,1714594250037,-313.28276725,0.00053972,120]
[325220996,1714594250046,-500.0,0.00053972,120]
[325220998,1714594250056,-500.0,0.00053972,120]
[325221000,1714594250066,-500.0,0.00053972,120]
[325221002,1714594250075,-500.0,0.00053972,120]
[325221005,1714594250085,-500.0,0.00053972,120]
[325221007,1714594250095,-500.0,0.00053972,120]
[325221009,1714594250104,-500.0,0.00053972,120]
[325221010,1714594250113,-502.1300506,0.00053972,120]
[325221012,1714594250122,-500.0,0.00053972,120]
[325221014,1714594250131,-500.0,0.00053972,120]
[325221016,1714594250140,-603.25997409,0.00053972,120]
[325221018,1714594250149,-500.0,0.00053972,120]
[325221020,1714594250158,-500.0,0.00053972,120]
[325221022,1714594250167,-528.01,0.00053972,120]
[325221025,1714594250177,-500.0,0.00053972,120]
[325221027,1714594250186,-500.0,0.00053972,120]
[325221029,1714594250195,-500.0,0.00053972,120]
[325221031,1714594250204,-500.0,0.00053972,120]
[325221033,1714594250213,-196.64433549,0.00053972,120]
[325221034,1714594250223,-500.0,0.00053972,120]
[325221036,1714594250232,-737.79,0.00053972,120]
[325221039,1714594250241,-500.0,0.00053972,120]
[325221041,1714594250253,-500.0,0.00053972,120]
[325221043,1714594250262,-500.0,0.00053972,120]
[325221045,1714594250271,-500.0,0.00053972,120]
[325221046,1714594250280,-500.0,0.00053972,120]
[325221048,1714594250289,-500.0,0.00053972,120]
[325221050,1714594250298,-500.0,0.00053972,60]
[325221053,1714594250308,-500.0,0.00053972,120]
[325221054,1714594250318,-500.0,0.00053972,120]
[325221056,1714594250330,-739.19,0.00053972,120]
[325221058,1714594250339,-500.0,0.00053972,120]
[325221060,1714594250349,-500.0,0.00053972,120]
[325221062,1714594250359,-871.44,0.00053972,120]
[325221065,1714594250368,-500.0,0.00053972,120]
[325221067,1714594250377,-500.0,0.00053972,120]
[325221068,1714594250387,-898.93,0.00053972,120]
[325221069,1714594250395,-500.0,0.00053972,120]
[325221070,1714594250405,-500.0,0.00053972,120]
[325221071,1714594250415,-500.0,0.00053972,120]
[325221072,1714594250424,-684.61,0.00053972,120]
[325221073,1714594250433,-366.82106429,0.00053972,120]
[325221074,1714594250442,-500.0,0.00053972,120]
[325221075,1714594250452,-514.58858087,0.00053972,120]
[325221076,1714594250461,-500.0,0.00053972,120]
[325221077,1714594250470,-500.0,0.00053972,120]
[325221078,1714594250479,-500.0,0.00053972,120]
[325221079,1714594250488,-500.0,0.00053972,120]
[325221080,1714594250498,-501.87296289,0.00053972,120]
[325221081,1714594250509,-500.0,0.00053972,120]
[325221082,1714594250518,-500.0,0.00053972,120]
[325221083,1714594250527,-455.45745114,0.00053972,120]
[325221084,1714594250535,-504.43,0.00053972,120]
[325221085,1714594250547,-500.0,0.00053972,120]
[325221086,1714594250556,-500.0,0.00053972,120]
[325221087,1714594250565,-500.0,0.00053972,120]
[325221088,1714594250574,-500.0,0.00053972,2]
[325221089,1714594250583,-500.0,0.00053972,120]
[325221090,1714594250593,-500.0,0.00053972,120]
[325221091,1714594250602,-515.61,0.00053972,120]
[325221092,1714594250611,-500.0,0.00053972,120]
[325221093,1714594250620,-1000.0,0.00053972,120]
[325221094,1714594250629,-758.4,0.00053972,120]
[325221095,1714594250639,-565.37,0.00053972,120]
[325221096,1714594250648,-500.0,0.00053972,120]
[325221097,1714594250657,-500.0,0.00053972,120]
[325221098,1714594250667,-500.0,0.00053972,120]
[325221099,1714594250676,-500.0,0.00053972,120]
[325221100,1714594250685,-722.48,0.00053972,120]
[325221101,1714594250694,-500.0,0.00053972,120]
[325221102,1714594250703,-500.0,0.00053972,120]
[325221103,1714594250713,-500.0,0.00053972,120]
[325221104,1714594250722,-500.0,0.00053972,120]
[325221105,1714594250731,-500.0,0.00053972,120]
[325221106,1714594250740,-500.0,0.00053972,120]
[325221107,1714594250749,-1476.82,0.00053972,120]
[325221108,1714594250762,-500.0,0.00053972,120]
[325221109,1714594250771,-500.0,0.00053972,2]
[325221110,1714594250780,-500.0,0.00053972,120]
[325221111,1714594250789,-500.0,0.00053972,120]
[325221112,1714594250798,-500.0,0.00053972,120]
[325221113,1714594250807,-500.0,0.00053972,120]
[325221114,1714594250817,-500.0,0.00053972,120]
[325221115,1714594250826,-500.0,0.00053972,120]
[325221116,1714594250835,-500.0,0.00053972,120]
[325221117,1714594250844,-500.0,0.00053972,120]
[325221118,1714594250854,-858.97,0.00053972,120]
[325221119,1714594250863,-994.28,0.00053972,120]
[325221120,1714594250872,-500.0,0.00053972,120]
[325221121,1714594250881,-238.00542223,0.00053972,120]
[325221122,1714594250890,-877.01,0.00053972,120]
[325221123,1714594250899,-500.0,0.00053972,120]
[325221124,1714594250908,-500.0,0.00053972,2]
[325221125,1714594250917,-500.0,0.00053972,120]
[325221126,1714594250926,-500.0,0.00053972,120]
[325221127,1714594250935,-500.0,0.00053972,120]
[325221128,1714594250944,-500.0,0.00053972,120]
[325221129,1714594250953,-500.0,0.00053972,120]
[325221130,1714594250962,-641.81,0.00053972,120]
[325221131,1714594250971,-731.29,0.00053972,120]
[325221132,1714594250980,-500.0,0.00053972,120]
[325221133,1714594250990,-500.0,0.00053972,120]
[325221134,1714594251003,-500.0,0.00053972,120]
[325221135,1714594251012,-500.0,0.00053972,120]
[325221136,1714594251021,-500.0,0.00053972,120]
[325221137,1714594251030,-500.0,0.00053972,120]
[325221138,1714594251039,-500.0,0.00053972,120]
[325221139,1714594251049,-523.34,0.00053972,120]
[325221140,1714594251058,-500.0,0.00053972,120]
[325221141,1714594251071,-500.0,0.00053972,120]
[325221142,1714594251081,-500.0,0.00053972,120]
[325221143,1714594251090,-500.0,0.00053972,120]
[325221144,1714594251099,-500.0,0.00053972,120]
[325221145,1714594251108,-500.0,0.00053972,120]
[325221146,1714594251118,-500.0,0.00053972,120]
[325221147,1714594251127,-838.84,0.00053972,120]
[325221148,1714594251137,-500.0,0.00053972,120]
[325221149,1714594251147,-500.0,0.00053972,120]
[325221151,1714594251156,-769.02,0.00053972,120]
[325221153,1714594251168,-500.0,0.00053972,120]
[325221155,1714594251184,-500.0,0.00053972,120]
[325221156,1714594251202,-565.9,0.00053972,120]
[325221158,1714594251212,-500.0,0.00053972,120]
[325221160,1714594251220,-500.0,0.00053972,120]
[325221161,1714594251230,-500.0,0.00053972,120]
[325221162,1714594251239,-500.0,0.00053972,120]
[325221163,1714594251249,-500.0,0.00053972,120]
[325221164,1714594251263,-500.0,0.00053972,120]
[325221165,1714594251272,-938.56,0.00053972,120]
[325221166,1714594251281,-500.0,0.00053972,120]
[325221167,1714594251291,-640.98,0.00053972,120]
[325221168,1714594251301,-500.0,0.00053972,120]
[325221169,1714594251311,-296.01220313,0.00053972,2]
[325221170,1714594251321,-500.0,0.00053972,120]
[325221171,1714594251333,-1319.65,0.00053972,120]
[325221172,1714594251342,-923.21,0.00053972,120]
[325221173,1714594251351,-500.0,0.00053972,120]
[325221174,1714594251360,-500.0,0.00053972,120]
[325221175,1714594251369,-500.0,0.00053972,120]
[325221176,1714594251380,-500.0,0.00053972,120]
[325221177,1714594251389,-155.09148202,0.00053972,120]
[325221178,1714594251399,-500.0,0.00053972,120]
[325221179,1714594251410,-496.53007339,0.00053972,120]
[325221180,1714594251420,-500.0,0.00053972,120]
[325221181,1714594251429,-500.0,0.00053972,120]
[325221182,1714594251438,-907.84,0.00053972,120]
[325221183,1714594251447,-862.16,0.00053972,120]
[325221184,1714594251457,-500.0,0.00053972,120]
[325221185,1714594251466,-2859.42,0.00053972,120]
[325221186,1714594251475,-500.0,0.00053972,120]
[325221187,1714594251485,-500.0,0.00053972,120]
[325221188,1714594251494,-500.0,0.00053972,120]
[325221189,1714594251506,-500.0,0.00053972,120]
[325221190,1714594251515,-500.0,0.00053972,120]
[325221191,1714594251524,-2858.23,0.00053972,120]
[325221192,1714594251533,-500.0,0.00053972,120]
[325221193,1714594251542,-500.0,0.00053972,120]
[325221194,1714594251553,-551.22032398,0.00053972,120]
[325221195,1714594251562,-500.0,0.00053972,3]
[325221196,1714594251571,-500.0,0.00053972,120]
[325221197,1714594251580,-701.82,0.00053972,120]
[325221198,1714594251589,-500.0,0.00053972,120]
[325221199,1714594251598,-812.11,0.00053972,120]
[325221200,1714594251607,-680.91,0.00053972,120]
[325221201,1714594251615,-1022.99,0.00053972,120]
[325221202,1714594251624,-500.0,0.00053972,120]
[325221203,1714594251634,-500.0,0.00053972,120]
[325221204,1714594251643,-500.0,0.00053972,120]
[325221205,1714594251652,-500.0,0.00053972,120]
[325221206,1714594251661,-151.0,0.00053972,7]
[325221207,1714594251671,-500.0,0.00053972,120]
[325221208,1714594251680,-656.49,0.00053972,120]
[325221209,1714594251689,-500.0,0.00053972,120]
[325221210,1714594251699,-873.29,0.00053972,120]
[325221211,1714594251708,-646.97,0.00053972,120]
[325221212,1714594251717,-500.0,0.00053972,120]
[325221213,1714594251727,-151.0,0.00053972,7]
[325221214,1714594251736,-500.0,0.00053972,120]
[325221215,1714594251746,-590.55,0.00053972,120]
[325221216,1714594251756,-500.0,0.00053972,120]
[325221217,1714594251766,-500.0,0.00053972,120]
[325221218,1714594251775,-500.0,0.00053972,120]
[325221219,1714594251785,-500.0,0.00053972,120]
[325221220,1714594251794,-546.24,0.00053972,120]
[325221221,1714594251803,-500.0,0.00053972,120]
[325221222,1714594251816,-500.0,0.00053972,120]
[325221223,1714594251835,-500.0,0.00053972,120]
[325221224,1714594251844,-500.0,0.00053972,120]
[325221225,1714594251855,-501.02780802,0.00053972,120]
[325221226,1714594251870,-500.0,0.00053972,120]
[325221227,1714594251879,-527.76576287,0.00053972,120]
[325221228,1714594251888,-551.86443502,0.00053972,120]
[325221229,1714594251897,-500.0,0.00053972,120]
[325221230,1714594251907,-500.0,0.00053972,120]
[325221231,1714594251916,-151.0,0.00053972,7]
[325221232,1714594251926,-506.47,0.00053972,120]
[325221233,1714594251935,-500.0,0.00053972,120]
[325221234,1714594251944,-500.0,0.00053972,120]
[325221235,1714594251953,-500.0,0.00053972,120]
[325221236,1714594251962,-781.22,0.00053972,2]
[325221237,1714594251971,-500.0,0.00053972,120]